bitfinex-derivatives/quotes_BTCF0:USTF0_20250810
["timestamp","ask_amount","ask_price","bid_price","bid_amount"]
[1754795609763,0.45896126,118020.0,118010.0,0.1087665]
[1754795609971,0.45896126,118020.0,118010.0,0.9880065]
[1754795611275,0.54368056,118020.0,118010.0,0.1087665]
[1754795611467,0.54368056,118020.0,118010.0,0.9868465]
[1754795611666,0.45896126,118020.0,118010.0,0.9868465]
[1754795613665,0.45896126,118020.0,118010.0,1.3476465]
[1754795613872,0.45896126,118020.0,118010.0,0.9870465]
[1754795614177,0.45896126,118020.0,118010.0,1.3478465]
[1754795615681,0.45896126,118020.0,118010.0,0.4697665]
[1754795615880,0.45896126,118020.0,118010.0,1.3446865]
[1754795618876,0.41142126,118020.0,118010.0,1.3446865]
[1754795619077,0.45704126,118020.0,118010.0,1.3446865]
[1754795625387,0.54176056,118020.0,118010.0,0.1089665]
[1754795625592,0.54176056,118020.0,118010.0,0.9789665]
[1754795627685,0.45704126,118020.0,118010.0,0.9789665]
[1754795628081,0.54176056,118020.0,118010.0,0.9789665]
[1754795632593,0.2004293,118020.0,118010.0,0.9789665]
[1754795632789,0.54176056,118020.0,118010.0,0.9789665]
[1754795638496,0.54176056,118020.0,118010.0,1.03868806]
[1754795639204,0.2004293,118020.0,118010.0,1.03868806]
[1754795639495,0.54176056,118020.0,118010.0,1.03868806]
[1754795639893,0.2004293,118020.0,118010.0,1.03868806]
[1754795640096,0.54176056,118020.0,118010.0,1.03868806]
[1754795640889,0.2004293,118020.0,118010.0,1.03868806]
[1754795641096,0.54176056,118020.0,118010.0,1.03868806]
[1754795642098,0.2004293,118020.0,118010.0,1.03868806]
[1754795642298,0.54176056,118020.0,118010.0,1.03868806]
[1754795642499,0.11571,118020.0,118010.0,1.03868806]
[1754795642686,0.45704126,118020.0,118010.0,1.03868806]
[1754795642886,0.11571,118020.0,118010.0,1.03868806]
[1754795643096,0.54176056,118020.0,118010.0,1.03868806]
[1754795643294,0.11571,118020.0,118010.0,1.03868806]
[1754795643589,0.45704126,118020.0,118010.0,1.03868806]
[1754795644196,0.44327126,118020.0,118010.0,1.03868806]
[1754795644401,0.41142126,118020.0,118010.0,1.03868806]
[1754795644898,0.45704126,118020.0,118010.0,1.03868806]
[1754795645098,0.45704126,118020.0,118010.0,1.39948806]
[1754795645603,0.36407126,118020.0,118010.0,1.39948806]
[1754795645897,0.41356126,118020.0,118010.0,1.39948806]
[1754795646294,0.43458126,118020.0,118010.0,1.39948806]
[1754795646494,0.44371126,118020.0,118010.0,1.39948806]
[1754795647099,0.10238,118020.0,118010.0,1.39948806]
[1754795647391,0.36407126,118020.0,118010.0,1.3397665]
[1754795647992,0.45796126,118020.0,118010.0,1.3397665]
[1754795648197,0.45796126,118020.0,118010.0,1.39948806]
[1754795648395,0.45796126,118020.0,118010.0,1.3397665]
[1754795649298,0.38037126,118020.0,118010.0,1.39948806]
[1754795650099,0.41356126,118020.0,118010.0,1.39948806]
[1754795650403,0.41356126,118020.0,118010.0,1.3397665]
[1754795651006,0.36407126,118020.0,118010.0,1.3397665]
[1754795652506,0.02274,118020.0,118010.0,1.39948806]
[1754795652706,0.36407126,118020.0,118010.0,1.39948806]
[1754795653098,0.02274,118020.0,118010.0,1.39948806]
[1754795653300,0.36407126,118020.0,118010.0,1.39948806]
[1754795654705,0.36407126,118020.0,118010.0,1.41494251]
[1754795654907,0.36407126,118020.0,118010.0,1.3397665]
[1754795656504,0.34133126,118020.0,118010.0,1.5092152]
[1754795657012,0.02274,118020.0,118010.0,1.5092152]
[1754795657394,0.0003,118030.0,118020.0,0.0847193]
[1754795657601,0.62739256,118030.0,118020.0,1.3388993]
[1754795657905,0.54267566,118030.0,118020.0,1.3388993]
[1754795658406,0.45796126,118030.0,118020.0,1.3388993]
[1754795658603,0.45896126,118030.0,118020.0,1.3388993]
[1754795658802,0.38137126,118030.0,118020.0,1.3388993]
[1754795659005,0.41456126,118030.0,118020.0,1.3388993]
[1754795659302,0.11863,118030.0,118020.0,1.3388993]
[1754795659505,0.45996126,118030.0,118020.0,1.3388993]
[1754795660601,0.54467336,118030.0,118020.0,1.3388993]
[1754795661002,0.45996126,118030.0,118020.0,1.3388993]
[1754795661303,0.45996126,118030.0,118020.0,1.3366193]
[1754795661497,0.45896126,118030.0,118020.0,1.3376193]
[1754795663197,0.11763,118030.0,118020.0,1.3376193]
[1754795663403,0.45896126,118030.0,118020.0,1.3376193]
[1754795663703,0.11763,118030.0,118020.0,1.3376193]
[1754795663900,0.45896126,118030.0,118020.0,1.3376193]
[1754795664412,0.45796126,118030.0,118020.0,1.3386193]
[1754795664812,0.11663,118030.0,118020.0,1.3386193]
[1754795665012,0.45796126,118030.0,118020.0,1.3386193]
[1754795666607,0.6287913,118030.0,118020.0,1.3386193]
[1754795668214,0.11663,118030.0,118020.0,1.3386193]
[1754795668413,0.6287913,118030.0,118020.0,1.3386193]
[1754795671518,0.7135034,118030.0,118020.0,1.3386193]
[1754795672918,0.7135034,118030.0,118020.0,0.9778193]
[1754795675121,0.6287913,118030.0,118020.0,0.9778193]
[1754795675322,0.7135034,118030.0,118020.0,0.9778193]
[1754795675519,0.7135034,118030.0,118020.0,1.3386193]
[1754795681124,0.7135034,118030.0,118020.0,0.9778193]
[1754795682421,0.96958405,118030.0,118020.0,0.01198]
[1754795682627,0.2013421,118030.0,118020.0,0.9637993]
[1754795682825,0.7135034,118030.0,118020.0,0.9637993]
[1754795684529,0.7135034,118030.0,118020.0,0.9399993]
[1754795684728,0.7135034,118030.0,118020.0,0.0869193]
[1754795684930,0.7135034,118030.0,118020.0,0.9384393]
[1754795685627,0.7135034,118030.0,118020.0,0.9524593]
[1754795686128,0.7135034,118030.0,118020.0,0.9622393]
[1754795686926,0.96958405,118030.0,118020.0,0.9622393]
[1754795687132,0.2013421,118030.0,118020.0,0.9622393]
[1754795687322,0.7135034,118030.0,118020.0,0.9622393]
[1754795687729,0.7135034,118030.0,118020.0,0.9482193]
[1754795687929,0.7135034,118030.0,118020.0,0.9384393]
[1754795688124,1.33038405,118030.0,118020.0,0.0022]
[1754795688323,1.33038405,118030.0,118020.0,0.8522]
[1754795688529,1.33038405,118030.0,118020.0,0.9369193]
[1754795689927,1.33038405,118030.0,118020.0,0.9361193]
[1754795690224,0.2019093,118020.0,118010.0,0.0001]
[1754795690532,0.2019165,118010.0,118000.0,1.00916971]
[1754795690722,1.33095845,118010.0,118000.0,0.9338937]
[1754795691128,1.0748778,118010.0,118000.0,0.9338937]
[1754795691430,1.33095845,118010.0,118000.0,0.9338937]
[1754795691631,0.5627165,118010.0,118000.0,0.9338937]
[1754795691829,1.0748778,118010.0,118000.0,0.9338937]
[1754795692228,0.5627165,118010.0,118000.0,0.9338937]
[1754795692429,0.5627165,118010.0,118000.0,0.9576937]
[1754795692632,1.0748778,118010.0,118000.0,0.9575737]
[1754795692833,1.0748778,118010.0,118000.0,0.9585737]
[1754795693226,1.0748778,118010.0,118000.0,0.9595737]
[1754795694326,0.7140778,118010.0,118000.0,0.9595737]
[1754795694730,0.54347273,118010.0,118000.0,0.9595737]
[1754795695629,0.2019165,118010.0,118000.0,0.9595737]
[1754795695829,0.54347273,118010.0,118000.0,0.9595737]
[1754795696838,0.90427273,118010.0,118000.0,0.9357737]
[1754795697041,0.90427273,118010.0,118000.0,0.9497937]
[1754795697233,0.90427273,118010.0,118000.0,0.0867337]
[1754795697432,1.24582896,118010.0,118000.0,0.9331337]
[1754795697834,0.5627165,118010.0,118000.0,0.9331337]
[1754795698039,0.90427273,118010.0,118000.0,0.1007537]
[1754795698235,0.54347273,118010.0,118000.0,0.1105337]
[1754795698441,0.90427273,118010.0,118000.0,0.1105337]
[1754795700042,1.24582896,118010.0,118000.0,0.0867337]
[1754795703752,0.5627165,118010.0,118000.0,0.0867337]
[1754795703947,0.90427273,118010.0,118000.0,0.0867337]
[1754795704149,1.24582896,118010.0,118000.0,0.0867337]
[1754795704343,0.1326637,118000.0,117990.0,0.937118]
[1754795704549,1.24583616,118000.0,117990.0,0.937018]
[1754795705053,1.24583616,118000.0,117980.0,0.85242]
[1754795705054,0.2019309,117990.0,117980.0,0.85242]
[1754795705348,0.2028881,117980.0,117970.0,1.1308567]
[1754795705546,0.2028881,117980.0,117970.0,1.1305167]
[1754795705547,0.54444433,117980.0,117970.0,1.1305167]
[1754795705742,0.90524433,117980.0,117970.0,1.1305167]
[1754795705947,0.90524433,117980.0,117970.0,1.1337967]
[1754795706148,0.90524433,117980.0,117970.0,0.2818367]
[1754795706347,0.90524433,117980.0,117970.0,1.1337967]
[1754795706543,0.90524433,117980.0,117970.0,0.004]
[1754795706746,0.90524433,117980.0,117940.0,0.45057601]
[1754795706747,0.0847696,117950.0,117940.0,0.45057601]
[1754795707051,0.54446583,117950.0,117940.0,1.03534231]
[1754795707255,0.54446583,117950.0,117940.0,0.9601663]
[1754795707851,0.54446583,117950.0,117910.0,0.1907947]
[1754795707852,0.0847912,117920.0,117910.0,0.1907947]
[1754795708055,1.17618366,117920.0,117910.0,0.4805574]
[1754795708255,1.17618366,117920.0,117910.0,0.02277]
[1754795708446,0.1636584,117910.0,117900.0,0.1288704]
[1754795708650,0.1638956,117900.0,117890.0,0.9876304]
[1754795708853,0.86625183,117900.0,117890.0,0.1062004]
[1754795709049,0.0848128,117890.0,117870.0,0.00017356]
[1754795709356,1.48953246,117880.0,117870.0,0.02294356]
[1754795709551,1.48953246,117880.0,117870.0,0.00017356]
[1754795709749,0.80642,117880.0,117870.0,0.00017356]
[1754795709948,1.48953246,117880.0,117870.0,0.00017356]
[1754795710149,0.0848272,117870.0,117850.0,0.03428]
[1754795710354,1.74403016,117880.0,117830.0,0.95714]
[1754795710355,0.1230887,117840.0,117830.0,0.95714]
[1754795710549,0.0848559,117830.0,117810.0,0.49434449]
[1754795710750,0.4839031,117820.0,117810.0,0.62773479]
[1754795710958,0.82545933,117820.0,117810.0,0.34327351]
[1754795711253,0.1076403,117810.0,117800.0,0.0083626]
[1754795711447,0.1076403,117810.0,117790.0,0.04888]
[1754795711448,0.1076475,117800.0,117790.0,0.04888]
[1754795711649,0.084892,117780.0,117770.0,1.35428018]
[1754795711854,0.42644823,117780.0,117770.0,1.35428018]
[1754795712156,0.44921823,117780.0,117770.0,0.00030098]
[1754795712352,0.0849208,117740.0,117730.0,0.10979098]
[1754795712550,0.084928,117730.0,117720.0,0.30721689]
[1754795712755,0.84803849,117730.0,117720.0,0.32998689]
[1754795713145,0.0849353,117720.0,117710.0,0.02277]
[1754795713352,0.1698945,117710.0,117700.0,0.07165]
[1754795713553,0.4457454,117710.0,117700.0,0.1566997]
[1754795713754,0.4457454,117710.0,117700.0,0.02287]
[1754795713755,0.47238896,117710.0,117700.0,0.02287]
[1754795713950,2.30650694,117710.0,117690.0,0.05705]
[1754795714154,0.0849569,117690.0,117680.0,0.02287]
[1754795714455,0.3608,117720.0,117710.0,0.1077125]
[1754795714648,0.02648322,117720.0,117710.0,0.1565925]
[1754795714849,0.1708936,117710.0,117690.0,1.0211269]
[1754795715049,0.48825299,117710.0,117700.0,0.07165]
[1754795715354,0.84905299,117710.0,117700.0,0.07165]
[1754795715547,0.0849497,117700.0,117690.0,0.88739]
[1754795715752,0.0849569,117690.0,117680.0,0.02397]
[1754795715956,0.84806739,117690.0,117680.0,0.02387]
[1754795716151,1.01807059,117700.0,117690.0,0.02277]
[1754795716152,0.5308049,117700.0,117690.0,0.02277]
[1754795716350,0.5308049,117700.0,117690.0,0.07165]
[1754795716351,0.3608,117700.0,117690.0,0.07165]
[1754795716551,0.0001,117710.0,117700.0,0.1565997]
[1754795716750,0.76311049,117710.0,117700.0,0.8644]
[1754795717054,0.0849497,117700.0,117690.0,0.0001]
[1754795717255,0.0849569,117690.0,117680.0,1.0225741]
[1754795717455,0.0001,117700.0,117690.0,0.07165]
[1754795717655,0.3608,117700.0,117690.0,0.1566069]
[1754795717960,0.0849569,117690.0,117680.0,0.05725]
[1754795718254,0.4457569,117690.0,117680.0,0.0001]
[1754795718461,0.84806739,117690.0,117680.0,0.02287]
[1754795718859,0.84806739,117690.0,117680.0,0.0001]
[1754795719068,1.01801139,117690.0,117680.0,0.0001]
[1754795719359,1.01901139,117690.0,117680.0,0.0001]
[1754795719755,0.84906739,117690.0,117680.0,0.0001]
[1754795719955,0.84906739,117690.0,117680.0,0.02287]
[1754795720158,0.84806739,117690.0,117680.0,0.02287]
[1754795720465,0.84906739,117690.0,117680.0,0.1078341]
[1754795720662,0.3618,117690.0,117680.0,0.1567141]
[1754795720962,0.001,117690.0,117680.0,0.1567141]
[1754795721159,0.001,117690.0,117680.0,1.0213541]
[1754795721359,0.001,117690.0,117680.0,1.0223541]
[1754795722263,0.001,117690.0,117680.0,1.0233541]
[1754795722468,0.84815939,117700.0,117690.0,0.07165]
[1754795722652,0.84805939,117700.0,117690.0,0.07165]
[1754795722854,1.25036988,117700.0,117690.0,0.02277]
[1754795723056,0.84805939,117700.0,117690.0,0.02277]
[1754795723254,0.76311049,117700.0,117690.0,0.1566062]
[1754795723456,0.0001,117710.0,117700.0,0.1565992]
[1754795723659,0.93308589,117720.0,117710.0,0.156592]
[1754795723863,0.76311049,117720.0,117710.0,0.156592]
[1754795724165,0.76321049,117730.0,117710.0,0.241534]
[1754795724360,0.3609,117730.0,117720.0,0.1565848]
[1754795724666,0.76311049,117730.0,117720.0,0.1565848]
[1754795725061,0.0001,117740.0,117720.0,1.4788844]
[1754795725257,0.0001,117740.0,117730.0,0.1565776]
[1754795725561,0.0001,117750.0,117740.0,0.1565703]
[1754795725754,0.76311049,117760.0,117750.0,0.1565631]
[1754795725755,0.76321049,117760.0,117750.0,0.1565631]
[1754795725964,0.40241049,117770.0,117750.0,0.6871893]
[1754795726264,0.76321049,117770.0,117760.0,0.1565559]
[1754795726454,0.6155869,117780.0,117760.0,0.2186918]
[1754795726653,0.5306893,117780.0,117770.0,0.1076687]
[1754795726859,0.5305893,117780.0,117770.0,0.1076687]
[1754795727066,0.4456936,117780.0,117770.0,0.1419487]
[1754795727259,0.4473936,117780.0,117770.0,0.02277]
[1754795727466,0.4503936,117780.0,117770.0,0.02277]
[1754795727768,1.3137536,117780.0,117770.0,0.1076687]
[1754795727964,1.71606409,117780.0,117770.0,0.1078687]
[1754795728263,1.71606409,117780.0,117770.0,0.0002]
[1754795728663,1.3137536,117780.0,117770.0,0.0002]
[1754795728970,1.71706409,117780.0,117770.0,0.0002]
[1754795729471,1.71706409,117780.0,117770.0,0.02297]
[1754795729666,0.3648,117780.0,117770.0,0.07185]
[1754795729961,0.3648,117780.0,117770.0,0.1567487]
[1754795730156,0.3648,117780.0,117770.0,0.6265647]
[1754795730472,0.004,117780.0,117770.0,1.8516447]
[1754795731160,0.002,117780.0,117770.0,1.8516447]
[1754795732963,0.001,117780.0,117770.0,1.8516447]
[1754795733169,0.3608,117800.0,117790.0,0.1565343]
[1754795733467,0.84798039,117810.0,117800.0,0.07165]
[1754795733768,0.84966039,117810.0,117800.0,0.02277]
[1754795734159,0.84966039,117810.0,117800.0,0.07165]
[1754795734358,0.84966039,117810.0,117800.0,0.1565271]
[1754795734359,0.3608,117810.0,117800.0,0.1565271]
[1754795734663,0.4486699,117810.0,117800.0,0.07165]
[1754795734867,0.3638,117810.0,117800.0,0.1565271]
[1754795735375,0.003,117810.0,117800.0,0.1565271]
[1754795735665,0.003,117810.0,117800.0,0.5173271]
[1754795736258,0.003,117810.0,117800.0,0.5183271]
[1754795736658,0.4457633,117820.0,117800.0,0.6032042]
[1754795736857,0.4457633,117820.0,117810.0,0.1570099]
[1754795737063,0.4456627,117820.0,117810.0,0.2418798]
[1754795737257,0.4456627,117820.0,117810.0,0.1570099]
[1754795737470,0.84797319,117820.0,117810.0,0.1570099]
[1754795737868,0.76311049,117820.0,117810.0,0.1570099]
[1754795738169,0.40331049,117820.0,117810.0,0.1570099]
[1754795738369,0.02892739,117820.0,117810.0,0.1570099]
[1754795738571,0.02892739,117820.0,117810.0,1.0224099]
[1754795738769,0.11379009,117820.0,117810.0,1.0234099]
[1754795738971,0.51610058,117820.0,117810.0,1.0234099]
[1754795739264,0.0288263,117820.0,117810.0,1.59548039]
[1754795739470,0.0001,117830.0,117820.0,0.1570027]
[1754795739677,0.3609,117840.0,117830.0,0.1569955]
[1754795739859,0.3608,117840.0,117830.0,1.0205955]
[1754795740058,0.38962,117840.0,117830.0,1.0205955]
[1754795740659,0.4744683,117840.0,117830.0,1.0205955]
[1754795740867,0.38962,117840.0,117830.0,1.0205955]
[1754795741072,0.3608,117840.0,117830.0,1.03794184]
[1754795741269,0.0001,117850.0,117840.0,0.1569883]
[1754795741473,0.0001,117860.0,117850.0,0.1569811]
[1754795741773,0.39128,117870.0,117860.0,0.1569739]
[1754795741959,0.87831719,117870.0,117860.0,0.07214]
[1754795742369,0.3608,117870.0,117860.0,0.07214]
[1754795742571,0.3608,117870.0,117860.0,0.1569739]
[1754795743565,0.38962,117870.0,117860.0,0.1569739]
[1754795743872,0.79359049,117880.0,117870.0,0.1569667]
[1754795744063,0.79349049,117880.0,117870.0,1.0195267]
[1754795744570,0.39118,117880.0,117870.0,1.0195267]
[1754795744772,0.38962,117880.0,117870.0,1.0195267]
[1754795745272,0.39118,117880.0,117870.0,1.0195267]
[1754795745471,0.4759997,117880.0,117870.0,1.0195267]
[1754795745769,0.87831039,117880.0,117870.0,1.0195267]
[1754795745962,0.88231039,117880.0,117870.0,1.0195267]
[1754795746172,0.79749049,117880.0,117870.0,1.0195267]
[1754795746368,0.3728,117880.0,117870.0,1.0195267]
[1754795747676,0.012,117880.0,117870.0,1.3803267]
[1754795748176,0.012,117880.0,117870.0,1.0195267]
[1754795748578,0.012,117880.0,117870.0,1.42183719]
[1754795748881,0.3609,117890.0,117870.0,1.76115889]
[1754795749072,0.0001,117890.0,117880.0,0.92007039]
[1754795749373,0.39118,117910.0,117890.0,0.1569527]
[1754795749374,0.0001,117900.0,117890.0,0.1569527]
[1754795749577,0.39128,117910.0,117900.0,0.1569455]
[1754795749772,0.39118,117910.0,117900.0,0.1569455]
[1754795750167,0.4759784,117910.0,117900.0,0.1569455]
[1754795750680,0.87828889,117910.0,117900.0,0.1569455]
[1754795751479,0.41649703,117910.0,117900.0,0.1569455]
[1754795751673,0.39118,117910.0,117900.0,0.1569455]
[1754795751978,0.39118,117910.0,117900.0,0.1571455]
[1754795752168,0.87828889,117910.0,117900.0,0.1571455]
[1754795752372,0.89157889,117910.0,117900.0,0.1571455]
[1754795753880,0.89157889,117910.0,117900.0,0.1581455]
[1754795754382,0.87828889,117910.0,117900.0,0.1581455]
[1754795754584,0.39118,117910.0,117900.0,0.1591455]
[1754795756178,0.39148,117920.0,117900.0,0.3287524]
[1754795756382,0.41527683,117920.0,117910.0,1.0159384]
[1754795756685,0.41517683,117920.0,117910.0,1.0161384]
[1754795756877,0.05281683,117920.0,117910.0,1.0161384]
[1754795757182,0.00196,117930.0,117910.0,1.0161384]
[1754795757483,0.39138,117930.0,117920.0,0.1569312]
[1754795757684,0.39138,117930.0,117920.0,0.1571312]
[1754795757685,0.39128,117930.0,117920.0,0.1571312]
[1754795757980,0.91531176,117930.0,117920.0,0.0002]
[1754795758176,0.51300127,117930.0,117920.0,0.0002]
[1754795758383,0.91531176,117930.0,117920.0,0.0002]
[1754795759071,0.51300127,117930.0,117920.0,0.0002]
[1754795759272,0.91531176,117930.0,117920.0,0.0032]
[1754795760177,0.91531176,117930.0,117920.0,0.0052]
[1754795760372,0.91531176,117930.0,117920.0,0.0899912]
[1754795760777,0.91531176,117930.0,117920.0,0.0869912]
[1754795761182,0.91531176,117930.0,117920.0,0.0849912]
[1754795761384,1.77811176,117930.0,117920.0,0.0002]
[1754795761585,0.1266156,117900.0,117890.0,0.169619]
[1754795761887,1.27573336,117900.0,117890.0,0.169619]
[1754795763083,0.0848127,117890.0,117880.0,1.15737785]
[1754795763287,0.91494046,117890.0,117880.0,0.0001]
[1754795763481,0.1280971,117870.0,117860.0,0.1696626]
[1754795763680,0.1280971,117870.0,117860.0,0.0848343]
[1754795763681,1.42167489,117870.0,117860.0,0.0848343]
[1754795763983,0.1281043,117860.0,117850.0,0.1696746]
[1754795764179,0.91481883,117860.0,117850.0,0.3627386]
[1754795764488,0.91481883,117860.0,117840.0,1.0795518]
[1754795764489,0.1281115,117850.0,117840.0,0.1696918]
[1754795764788,0.91482603,117850.0,117840.0,0.1697918]
[1754795766990,0.91482603,117850.0,117840.0,0.0071]
[1754795767186,1.31713652,117850.0,117840.0,0.0071]
[1754795767492,0.01148,117820.0,117810.0,0.3266754]
[1754795767689,0.39588404,117820.0,117810.0,0.3266754]
[1754795767892,0.48074764,117820.0,117810.0,0.3266754]
[1754795768089,0.39588404,117820.0,117810.0,0.3266754]
[1754795768290,0.89040813,117820.0,117800.0,0.1697476]
[1754795768492,1.03656909,117810.0,117800.0,0.1943619]
[1754795768688,0.94434109,117810.0,117800.0,0.0989974]
[1754795768993,0.5664006,117810.0,117800.0,0.1838748]
[1754795769192,0.96871109,117810.0,117800.0,0.1838748]
[1754795769392,0.39665,117810.0,117800.0,0.1838748]
[1754795770092,0.50474972,117810.0,117800.0,0.1838748]
[1754795770301,0.140938,117800.0,117790.0,0.0001]
[1754795770495,0.1409452,117790.0,117780.0,0.0001]
[1754795770685,0.1409524,117780.0,117770.0,1.06997755]
[1754795770888,0.5017524,117780.0,117770.0,0.18676755]
[1754795771193,0.90406289,117780.0,117770.0,0.1697923]
[1754795771389,0.0848996,117770.0,117760.0,0.241974]
[1754795771594,0.41686,117770.0,117760.0,1.1846183]
[1754795772493,0.5017596,117770.0,117760.0,1.1846183]
[1754795772889,0.41686,117770.0,117760.0,1.1837383]
[1754795773494,1.01789929,117780.0,117760.0,1.1837383]
[1754795773495,0.0001,117780.0,117770.0,0.1569696]
[1754795773693,0.03179,117790.0,117780.0,0.1569624]
[1754795773887,0.03169,117790.0,117780.0,1.0134824]
[1754795774995,0.03169,117790.0,117780.0,1.0154824]
[1754795775382,0.05606,117790.0,117780.0,0.1589624]
[1754795775587,0.81917049,117790.0,117780.0,1.0157224]
[1754795775993,0.4457782,117800.0,117790.0,0.1569549]
[1754795775994,0.3609,117800.0,117790.0,0.1569549]
[1754795776190,0.39259,117810.0,117800.0,0.1569477]
[1754795776385,0.41686,117810.0,117800.0,1.0125477]
[1754795776692,0.39249,117810.0,117800.0,1.0125477]
[1754795777188,0.41696,117820.0,117810.0,0.1569406]
[1754795777393,0.41686,117820.0,117810.0,0.1569406]
[1754795777590,0.03169,117820.0,117810.0,0.1569406]
[1754795778590,0.90403389,117820.0,117810.0,0.1093806]
[1754795778791,0.81917049,117820.0,117810.0,0.1093806]
[1754795779396,0.90403389,117820.0,117810.0,0.1093806]
[1754795779598,0.5017234,117820.0,117810.0,0.1123806]
[1754795779793,0.5017234,117820.0,117810.0,0.1478206]
[1754795780099,0.90403389,117820.0,117810.0,0.1619406]
[1754795780297,0.90403389,117820.0,117810.0,0.1621406]
[1754795780590,0.54323389,117820.0,117810.0,0.1621406]
[1754795781097,0.54532389,117820.0,117810.0,0.1621406]
[1754795781301,0.46046049,117820.0,117810.0,0.1621406]
[1754795781696,0.41895,117820.0,117810.0,0.1621406]
[1754795781895,0.05815,117820.0,117810.0,0.1621406]
[1754795782196,0.03378,117820.0,117810.0,0.1621406]
[1754795782397,0.03199,117830.0,117820.0,0.1569334]
[1754795782599,0.03169,117830.0,117820.0,1.0105734]
[1754795782997,0.39279,117840.0,117830.0,0.1569262]
[1754795783190,0.03169,117840.0,117830.0,0.1571262]
[1754795783394,0.39488,117850.0,117840.0,0.156919]
[1754795783594,0.03378,117850.0,117840.0,1.011519]
[1754795783802,0.39458,117850.0,117840.0,1.011519]
[1754795784097,0.1186217,117850.0,117840.0,1.011519]
[1754795784397,0.90610219,117850.0,117840.0,1.011519]
[1754795785698,0.5037917,117850.0,117840.0,1.011519]
[1754795785902,0.90610219,117850.0,117840.0,1.012519]
[1754795786098,0.90610219,117850.0,117840.0,1.013519]
[1754795786999,1.30841268,117850.0,117840.0,0.0012]
[1754795787306,0.92779005,117850.0,117840.0,1.009439]
[1754795787502,0.44063776,117850.0,117840.0,1.009439]
[1754795787699,0.41626776,117850.0,117840.0,1.009439]
[1754795787900,0.03378,117850.0,117840.0,1.009439]
[1754795788098,0.03169,117850.0,117840.0,1.009439]
[1754795788493,0.3611,117860.0,117840.0,1.50937319]
[1754795788705,0.3609,117860.0,117850.0,0.1569118]
[1754795788899,0.39279,117870.0,117860.0,0.1569046]
[1754795789200,0.82126049,117870.0,117860.0,0.0002]
[1754795789400,0.90608789,117870.0,117860.0,0.0002]
[1754795789800,0.1429845,117860.0,117850.0,0.0001]
[1754795790102,0.1429917,117850.0,117840.0,0.0001]
[1754795790308,0.1429989,117840.0,117830.0,2.3511709]
[1754795790606,0.5037989,117840.0,117830.0,2.3510709]
[1754795791408,0.5037989,117840.0,117830.0,2.3520709]
[1754795791604,0.5037989,117840.0,117830.0,1.1782709]
[1754795791912,0.5037989,117840.0,117830.0,1.0702709]
[1754795792099,0.5037989,117840.0,117830.0,1.1551255]
[1754795792596,0.5037989,117840.0,117830.0,1.1561255]
[1754795794101,0.5037989,117840.0,117830.0,1.1702455]
[1754795794612,0.90610939,117840.0,117830.0,0.85264]
[1754795794805,0.90610939,117840.0,117830.0,0.87715]
[1754795795610,0.90610939,117840.0,117830.0,0.02651]
[1754795796005,0.90610939,117840.0,117830.0,0.002]
[1754795796599,0.90610939,117840.0,117830.0,0.0868562]
[1754795796802,0.5037989,117840.0,117830.0,0.0868562]
[1754795797010,0.90610939,117840.0,117830.0,0.1624562]
[1754795797311,0.88173939,117840.0,117830.0,0.0868562]
[1754795797499,0.90537939,117840.0,117830.0,0.1109862]
[1754795798001,0.5030689,117840.0,117830.0,0.1454862]
[1754795798208,0.90537939,117840.0,117830.0,0.1624562]
[1754795800218,0.3608,117840.0,117830.0,0.1624562]
[1754795800708,0.39297,117840.0,117830.0,0.1624562]
[1754795800910,0.477819,117840.0,117830.0,0.1624562]
[1754795801111,0.494069,117840.0,117830.0,0.1624562]
[1754795802218,0.516839,117840.0,117830.0,0.2121862]
[1754795802416,0.532959,117840.0,117830.0,0.2121862]
[1754795803021,0.544879,117840.0,117830.0,0.2121862]
[1754795803518,0.568519,117840.0,117830.0,0.2121862]
[1754795803722,0.97082949,117840.0,117830.0,0.2121862]
[1754795804117,0.12287,117840.0,117830.0,0.2121862]
[1754795804420,0.568519,117840.0,117830.0,0.2121862]
[1754795804817,0.59010763,117840.0,117830.0,0.2121862]
[1754795805012,0.99241812,117840.0,117830.0,0.002]
[1754795805424,1.84085812,117840.0,117830.0,0.002]
[1754795805619,0.2077262,117830.0,117820.0,0.0001]
[1754795805925,0.1569234,117820.0,117810.0,0.0849706]
[1754795806119,0.1569306,117810.0,117800.0,1.19586562]
[1754795806324,0.92004109,117810.0,117800.0,0.21097842]
[1754795806512,0.94166439,117810.0,117800.0,0.21097842]
[1754795806716,0.94166439,117810.0,117800.0,0.24547842]
[1754795806923,0.94166439,117810.0,117800.0,0.26244842]
[1754795807218,0.3824233,117810.0,117800.0,0.26244842]
[1754795807419,0.3608,117810.0,117800.0,0.26244842]
[1754795808326,0.39297,117810.0,117800.0,0.26744842]
[1754795808627,0.3608,117810.0,117800.0,0.66995891]
[1754795809124,0.3608,117810.0,117800.0,0.67395891]
[1754795809520,0.3608,117810.0,117800.0,0.27164842]
[1754795809922,0.38217419,117810.0,117800.0,0.67395891]
[1754795810224,0.39327,117820.0,117800.0,0.67395891]
[1754795810225,0.0003,117820.0,117810.0,0.1604706]
[1754795810426,0.3611,117830.0,117820.0,0.1604634]
[1754795810620,0.3611,117830.0,117820.0,0.1606634]
[1754795810621,0.43013753,117830.0,117820.0,0.1606634]
[1754795811023,0.45377753,117830.0,117820.0,0.1606634]
[1754795811527,0.09297753,117830.0,117820.0,0.1626634]
[1754795812323,0.17783373,117830.0,117820.0,0.1646634]
[1754795812523,0.09297753,117830.0,117820.0,0.1646634]
[1754795812725,0.58014422,117830.0,117820.0,0.1646634]
[1754795813130,0.17783373,117830.0,117820.0,0.1646634]
[1754795813331,0.53863373,117830.0,117820.0,0.1646634]
[1754795813532,0.09297753,117830.0,117820.0,0.1646634]
[1754795813927,0.06933753,117830.0,117820.0,0.1646634]
[1754795814233,0.02091753,117830.0,117820.0,0.1646634]
[1754795814626,0.05308753,117830.0,117820.0,0.1646634]
[1754795814931,0.06933753,117830.0,117820.0,0.1646634]
[1754795815337,0.04842,117830.0,117820.0,0.1646634]
[1754795816547,0.55922669,117830.0,117820.0,0.1131934]
[1754795816747,0.92002669,117830.0,117820.0,0.1131934]
[1754795817044,0.92002669,117830.0,117820.0,0.1476934]
[1754795817246,0.94051285,117830.0,117820.0,0.1131934]
[1754795818548,0.92002669,117830.0,117820.0,0.1131934]
[1754795819047,0.92002669,117830.0,117820.0,0.0890634]
[1754795819549,0.99132332,117830.0,117820.0,0.0890634]
[1754795819939,0.97083669,117830.0,117820.0,0.0042]
[1754795820248,0.97083669,117830.0,117820.0,0.0890634]
[1754795821346,0.97083669,117830.0,117820.0,0.0042]
[1754795822048,0.97083669,117830.0,117820.0,0.0890634]
[1754795822446,0.97083669,117830.0,117820.0,0.0042]
[1754795823150,0.1356734,117820.0,117810.0,0.1698369]